Cogmind - Beta 16.1 @@@ ROGUE MODE // 2026.03.31 @ 11:03:41 Player: Gatamar Result: Destroyed by H-55 Commando with Gauss Rifle Performance ------------- Evolutions (3) 1500 Regions Visited (4) 800 Robots Destroyed (45) 225 Value Destroyed (1292) 1292 Prototype IDs (5) 100 Alien Tech Used (0) 0 Bonus (105) 105 TOTAL SCORE: 4022 Bonus ------- Follower Combat Kills 105 Cogmind --------- Core Integrity 0/700 Matter 300/300 Energy 92/100 System Corruption 0% Temperature Cool (0) Movement Treading (145) Location -7/Factory Parts ------- > --- POWER (1) -------- (None) > --- PROPULSION (3) --- Advanced Treads Advanced Treads Advanced Treads > --- UTILITY (4) ------ High-capacity Storage Unit Signal Interpreter Improved Utility Shielding > --- WEAPON (5) ------- (None) > --- INVENTORY (20) --- Armored Treads Armored Treads Small Matter Pod (50) Small Matter Pod (50) Large Matter Pod (64) Hacking Suite Heavy Ion Cannon Assault Cannon Grenade Launcher Improved Datajack Peak State ------------ > --- POWER ------------ Meta Core > --- PROPULSION ------- Armored Treads Armored Treads Armored Treads > --- UTILITY ---------- High-capacity Storage Unit Signal Interpreter Improved Utility Shielding Makeshift Light Armor Plating Hacking Suite > --- WEAPON ----------- 1B-0RG's Assimilator Heavy Hammer > --- INVENTORY -------- Armored Treads Armored Treads Advanced Treads Advanced Treads Advanced Treads Small Matter Pod Hacking Suite Heavy Ion Cannon Assault Cannon Grenade Launcher Improved Datajack [Rating: 104] Favorites ----------- Power Meta Core Engine Light Ion Engine Power Core Meta Core Propulsion Armored Treads Treads Armored Treads Hover Unit Hover Unit Flight Unit Xenon Bombardment Thruster Utility Signal Interpreter Device Drone Bay Storage Medium Storage Unit Processor Signal Interpreter Hackware Hacking Suite Protection Makeshift Light Armor Plating Weapon Heavy Hammer Energy Cannon Heavy Ion Cannon Ballistic Gun Assault Rifle Ballistic Cannon Assault Cannon Launcher Grenade Launcher Special Weapon Mining Laser Impact Weapon Heavy Hammer Special Melee Weapon 1B-0RG's Assimilator Build | -11 -10 -10 -8 -7 ------- Run | Yrd Mat Sub Mat Fac Slots Evolved 6 | . . . 4 2 Power . | . . . . . Propulsion 1 | . . . 1 . Utility 2 | . . . 1 1 Weapon 3 | . . . 2 1 Parts Attached 39 | 6 10 3 13 7 Power 3 | 1 . 2 . . Engine 2 | 1 . 1 . . Core 1 | . . 1 . . Reactor . | . . . . . Propulsion 17 | 2 3 . 9 3 Treads 9 | 2 . . 4 3 Leg . | . . . . . Wheel . | . . . . . Hover 3 | . 3 . . . Flight 5 | . . . 5 . Utility 8 | 1 2 1 1 3 Device 1 | . . . . 1 Storage 3 | 1 1 . . 1 Processor 1 | . 1 . . . Hackware 1 | . . 1 . . Protection 2 | . . . 1 1 Artifact . | . . . . . Weapon 11 | 2 5 . 3 1 Energy Gun . | . . . . . Energy Cannon 2 | . . . 2 . Ballistic Gun 2 | 2 . . . . Ballistic Cannon 2 | . 1 . 1 . Launcher 1 | . 1 . . . Special Weapon 2 | . 2 . . . Impact Weapon 1 | . 1 . . . Slashing Weapon . | . . . . . Piercing Weapon . | . . . . . Special Melee Weapon 1 | . . . . 1 Unidentified Prototypes 3 | . . 1 1 1 Parts Lost 10 | . . 1 . 9 Power 2 | . . 1 . 1 Propulsion 3 | . . . . 3 Utility 2 | . . . . 2 Weapon 3 | . . . . 3 Highest Loss Streak 6 | . . 1 . 6 To Critical Strikes . | . . . . . Average Backups 8 | 2 9 8 5 9 Power . | . 1 . . . Propulsion 2 | 1 1 1 2 4 Utility 2 | . 3 3 1 1 Weapon 1 | . 2 1 1 1 Tool/Special . | . . . . . Unused Backups 14 | . 4 3 . 7 Power . | . . . . . Propulsion 4 | . 2 . . 2 Utility 7 | . 1 2 . 4 Weapon 1 | . 1 . . . Tool/Special 2 | . . 1 . 1 Average Slot Usage (%) 88 | . 98 94 88 76 Engine 5 | . 14 9 . . Core 3 | . . 2 7 5 Treads 14 | . 11 . 17 18 Hover 7 | . 16 25 . . Flight 1 | . . . 6 . Storage 11 | . 18 12 7 6 Processor 7 | . 7 12 7 6 Hackware 3 | . . 2 7 5 Protection 3 | . . . 5 7 Energy Cannon 2 | . . . 6 3 Ballistic Gun 5 | . 7 2 7 3 Ballistic Cannon 8 | . 12 10 6 3 Impact Weapon 6 | . 6 12 6 5 Peak Build Rating 104 | 6 9 30 52 104 Average Rating 38 | 5 8 15 49 71 On Entrance 18 | . 6 9 30 48 Avg Prop Armor Cover (%) 1 | . . . 1 . Naked Turns . | . . . . . Heaviest Build 110 | 11 23 22 38 110 Greatest Support 66 | 40 40 12 60 66 Greatest Overweight (x) 36 | 1 1 1 6 36 Average Overweight (x) . | . . 1 . 1 Largest Inventory Capacity 20 | 8 10 10 10 20 Average Capacity 12 | 6 9 10 10 19 Most Carried 13 | 4 10 10 10 13 Average Carried 10 | 2 9 9 9 11 Final Capacity 20 | 8 10 10 10 20 Final Carried 10 | 4 10 10 10 10 Class Distribution -------------------- 58% | Mutant 38% | Tank 3% | Gunner Dominant Class ---------------- Mutant | -10/Materials Mutant | -10/Subcaves Tank | -8/Materials Tank | -7/Factory Resources | -11 -10 -10 -8 -7 ----------- Run | Yrd Mat Sub Mat Fac Matter Collected 1631 | 220 402 75 385 549 Remotely . | . . . . . Salvage Created 1281 | . 463 24 337 457 Parts 86 | . 51 . 18 17 Haulers Intercepted 2 | . 1 . . 1 Recyclers Shooed 3 | . 2 . . 1 Parts Field Recycled . | . . . . . Retrieved Matter . | . . . . . Parts Self-Destructed . | . . . . . Prevented . | . . . . . Parts Restored . | . . . . . Kills | -11 -10 -10 -8 -7 ------- Run | Yrd Mat Sub Mat Fac Combat Hostiles Destroyed 25 | . 10 1 8 6 Melee 2 | . . . . 2 Guns 2 | . 1 . . 1 Cannons 15 | . 6 1 7 1 AOE 4 | . 3 . . 1 Classes Destroyed 14 | . 9 1 . 4 Worker 7 | . 2 . 1 4 Builder 3 | . 1 . 1 1 Tunneler 2 | . 2 . . . Hauler 2 | . 1 . . 1 Recycler 1 | . . . . 1 Mechanic 1 | . 1 . . . Operator 3 | . 2 . . 1 Watcher 1 | . 1 . . . Swarmer 5 | . 3 . . 2 Grunt 13 | . 7 . 6 . Sentry 4 | . . 1 2 1 Specialist 1 | . . . . 1 Hunter 1 | . . . . 1 Programmer 1 | . . . . 1 Best Kill Streak 6 | . 6 1 4 3 Combat Bots Only 3 | . 3 1 2 2 Max Kills in Single Turn 4 | . 4 1 2 2 Gunslinging . | . . . . . Exploded 3 | . 3 . . 1 Melee 1 | . . . . 1 Uniques/NPCs Destroyed . | . . . . . Combat | -11 -10 -10 -8 -7 -------- Run | Yrd Mat Sub Mat Fac Hostile Shots Fired 378 | . 31 14 41 292 Missed 122 | . 7 3 11 101 Hits 256 | . 24 11 30 191 Projectile 256 | . 24 11 30 191 Critical Strikes 1 | . . . 1 . Damage Taken 3818 | . 315 161 454 2888 Core 844 | . 42 13 77 712 Absorbed by Shields . | . . . . . Redirected to Shielding 22 | . . . . 22 Regen/Repaired (Parts) 126 | . . . 52 74 Core Remaining (%) 88 | 100 . 78 86 . Volleys Fired 97 | . 44 10 26 17 Largest 3 | . 2 1 3 3 Hottest 122 | . 100 30 122 122 Shots Fired 180 | . 66 10 64 40 Gun 61 | . 24 . 24 13 Cannon 113 | . 36 10 40 27 Launcher 1 | . 1 . . . Special 5 | . 5 . . . Kinetic 151 | . 60 10 51 30 Thermal 28 | . 5 . 13 10 Explosive 1 | . 1 . . . Electromagnetic . | . . . . . Robot Hit Streak 13 | . 9 7 13 4 Robot Miss Streak 5 | . 2 1 3 5 Penetration Max . | . . . . . Secondary Targets . | . . . . . Shots Hit Robots 127 | . 48 8 41 30 Core Hits 53 | . 24 2 19 8 Critical Kills 1 | . . . . 1 Critical Parts Destroyed 5 | . . . 1 4 Critical Strikes 8 | . 1 . 2 5 Blast 2 | . 1 . 1 . Smash 6 | . . . 1 5 Melee Attacks 56 | . 14 1 9 32 Impact 56 | . 14 1 9 32 Slashing . | . . . . . Piercing . | . . . . . Sneak Attacks 9 | . 1 . . 8 Combat Hostiles . | . . . . . Follow-up Attacks . | . . . . . Damage Inflicted 3621 | . 964 136 986 1535 Guns 418 | . 204 . 181 33 Cannons 1600 | . 498 136 765 201 Explosions 544 | . 142 . . 402 Melee 1034 | . 120 . 40 874 Ramming 25 | . . . . 25 Kinetic 1616 | . 702 136 678 100 Thermal 804 | . . . 268 536 Explosive 142 | . 142 . . . Electromagnetic . | . . . . . Impact 1034 | . 120 . 40 874 Slashing . | . . . . . Piercing . | . . . . . Highest Corruption 3 | . . . 3 . Average Corruption 3 | . . . 3 . Corruption Purged . | . . . . . Corruption Blocked . | . . . . . Effects 16 | . . . 16 . Message Errors 2 | . . . 2 . Matter Fused 6 | . . . 6 . Heat Flow Errors 4 | . . . 4 . Energy Discharges 1 | . . . 1 . Parts Rejected 1 | . . . 1 . Data Loss (minor) 1 | . . . 1 . Misfires 1 | . . . 1 . Overload Shots . | . . . . . Overflow Damage 686 | . 11 . 40 635 Projectiles . | . . . . . Explosions 259 | . . . . 259 Melee 427 | . 11 . 40 376 Knockbacks 19 | . 9 . 5 5 Impact 3 | . . . . 3 Kinetic 16 | . 9 . 5 2 Secondary . | . . . . . Self-Inflicted Damage 126 | . 29 . . 97 Shots 3 | . 1 . . 2 Rammed 6 | . . . . 6 Targets Rammed 7 | . . . . 7 Kicked . | . . . . . Crushed 1 | . . . . 1 Highest Temperature 335 | . 28 . 334 335 Average Temperature 139 | . 9 . 151 177 Received Heat Transfer 570 | . 126 54 252 138 Effects 8 | . . . 7 1 Shutdowns 2 | . . . 1 1 Energy Bleed 4 | . . . 4 . Interference 2 | . . . 2 . Siege Activations . | . . . . . Martial Activations . | . . . . . Shielding Activations . | . . . . . Robots Disrupted . | . . . . . Combat Hostiles . | . . . . . Robots Corrupted 6 | . 1 . 1 4 Combat Hostiles 2 | . . . 1 1 Parts Fried 6 | . 2 . . 4 Impact Corruptions 11 | . 1 . 1 9 Robots Melted . | . . . . . Combat Hostiles . | . . . . . Parts Melted . | . . . . . Heat Transferred 755 | . . . 370 385 Parts Sabotaged . | . . . . . Parts Stolen . | . . . . . Parts Stripped . | . . . . . Power Chain Reactions . | . . . . . Alert | -11 -10 -10 -8 -7 ------- Run | Yrd Mat Sub Mat Fac Maximum Alert Level 1 | . . . . 1 Low Security (%) 85 | 100 100 . 100 54 Level 1 14 | . . . . 45 Level 2 . | . . . . . Level 3 . | . . . . . Level 4 . | . . . . . Level 5 . | . . . . . High Security . | . . . . . Max Security . | . . . . . Peak Influence 298 | . 105 . 106 298 Initial 10 | . . . . 10 Average 70 | . 36 . 36 143 Influence Increases 1196 | . 364 20 263 549 Destroy 0b10 Robot/C 560 | . 200 20 160 180 Destroy 0b10 Robot/NC 105 | . 50 . 10 45 Destroy Leader 138 | . 64 . 30 44 Allied During Kill 7 | . . . . 7 Successful Hack 4 | . . . 4 . Disable Machine 255 | . 15 . . 240 Destroy Structure 67 | . 20 . 14 33 Lose Combat Pursuer 60 | . 15 . 45 . Influence Decreases 1048 | . 306 78 239 425 Entered New Map 43 | . . 29 . 14 Time Decay 875 | . 306 49 239 281 Lost Part 90 | . . . . 90 Lost Ally 40 | . . . . 40 Squads Dispatched 7 | . 4 . 1 2 Investigation 3 | . 2 . 1 . Extermination 2 | . . . . 2 Reinforcement 2 | . 2 . . . Assault . | . . . . . Garrison . | . . . . . Intercept . | . . . . . Searches Triggered . | . . . . . Construction Impeded . | . . . . . Haulers Reinforced . | . . . . . Active Scanning Responses . | . . . . . Cargo Convoy Interrupts 1 | . . . . 1 Stealth | -11 -10 -10 -8 -7 --------- Run | Yrd Mat Sub Mat Fac Distress Signals 7 | . 2 . 4 1 Communications Jammed . | . . . . . Distress Signals . | . . . . . Times Spotted 73 | . 22 1 18 32 Peak Tracking Total 11 | . 5 1 5 11 Tactical Retreats 3 | . 1 . 2 . Traps | -11 -10 -10 -8 -7 ------- Run | Yrd Mat Sub Mat Fac Traps Triggered 3 | . 3 . . . Indirectly . | . . . . . Trap Hack Attempts . | . . . . . Triggered . | . . . . . Disarmed . | . . . . . Reprogrammed . | . . . . . Reused . | . . . . . Traps Extracted . | . . . . . Installed . | . . . . . Triggered . | . . . . . Machines | -11 -10 -10 -8 -7 ---------- Run | Yrd Mat Sub Mat Fac Machines Disabled 18 | . 1 1 . 16 Max in Single Turn 16 | . 1 1 . 16 Machines Repaired . | . . . . . Machines Dismantled . | . . . . . Machines Sabotaged . | . . . . . Overloaded Fab Kills . | . . . . . Hacking | -11 -10 -10 -8 -7 --------- Run | Yrd Mat Sub Mat Fac Machines Accessed 16 | . 6 . 6 4 Terminals 8 | . 4 . 3 1 Fabricators 2 | . . . . 2 Repair Stations 1 | . . . 1 . Recycling Units 4 | . 2 . 1 1 Scanalyzers 1 | . . . 1 . Garrison Access . | . . . . . Total Hacks 39 | . 12 . 20 7 Successful 21 | . 6 . 11 4 Failed 17 | . 6 . 8 3 Catastrophic 2 | . . . 1 1 Database Lockouts 1 | . . . 1 . Manual 5 | . 1 . 4 . Terminals 24 | . 10 . 12 2 Fabricators 2 | . . . . 2 Repair Stations 5 | . . . 5 . Recycling Units 6 | . 2 . 1 3 Scanalyzers 2 | . . . 2 . Garrison Access . | . . . . . Terminal Hacks 9 | . 3 . 6 . Record 1 | . . . 1 . Prototype ID Bank 1 | . . . 1 . Branch Access Points 2 | . 1 . 1 . Emergency Access Points 2 | . 1 . 1 . Alert Level 1 | . 1 . . . Zone Layout 2 | . . . 2 . Fabricator Hacks 2 | . . . . 2 Network Status 2 | . . . . 2 Repair Station Hacks 3 | . . . 3 . Scan Component 2 | . . . 2 . Repair 1 | . . . 1 . Recycling Unit Hacks 5 | . 2 . 1 2 Report Inventory 4 | . 2 . 1 1 Retrieve Components 1 | . . . . 1 Scanalyzer 1 | . . . 1 . Retrieve Study 1 | . . . 1 . Garrison Access Hacks . | . . . . . Unauthorized Hacks 1 | . 1 . . . Terminals 1 | . 1 . . . Botnet 1 | . 1 . . . Fabricators . | . . . . . Repair Stations . | . . . . . Recycling Units . | . . . . . Scanalyzers . | . . . . . Garrison Access . | . . . . . Data Cores Recovered 1 | . . . . 1 Used . | . . . . . Hacking Detections 11 | . 4 . 5 2 Full Trace Events 1 | . . . 1 . Feedback Events . | . . . . . Feedback Blocked . | . . . . . Robot Schematics Acquired . | . . . . . Robots Built . | . . . . . Authchips . | . . . . . Time . | . . . . . Total Robot Build Rating . | . . . . . Part Schematics Acquired . | . . . . . Parts Built . | . . . . . Authchips . | . . . . . Time . | . . . . . Total Part Build Rating . | . . . . . Part Studies Acquired . | . . . . . Parts Repaired 1 | . . . 1 . Time 32 | . . . 32 . Parts Recycled . | . . . . . Recycled Matter . | . . . . . Retrieved Matter . | . . . . . Retrieved Components 3 | . . . . 3 Parts Scanalyzed . | . . . . . Part Schematics Acquired . | . . . . . Parts Damaged . | . . . . . Bothacking | -11 -10 -10 -8 -7 ------------ Run | Yrd Mat Sub Mat Fac Used RIF Installer . | . . . . . Robots Hacked . | . . . . . Non-combat . | . . . . . Combat . | . . . . . Robot Hacks Applied . | . . . . . Relay Couplers Released . | . . . . . Fabnet Peak Effective % . | . . . . . Robots Rewired . | . . . . . Allies Hacked . | . . . . . Hacks Repelled . | . . . . . Allies | -11 -10 -10 -8 -7 -------- Run | Yrd Mat Sub Mat Fac Total Allies . | . . . . . Largest Group . | . . . . . Highest-Rated Group . | . . . . . Highest-Rated Ally . | . . . . . Total Orders . | . . . . . Ally Attacks 26 | . . . . 26 Total Damage 564 | . . . . 564 Kills 5 | . . . . 5 Allies Corrupted . | . . . . . Allies Melted . | . . . . . Borg Created 3 | . . . . 3 Largest Collective 2 | . . . . 2 Intel | -11 -10 -10 -8 -7 ------- Run | Yrd Mat Sub Mat Fac Active Infowar (turns) . | . . . . . Robot Analysis Total . | . . . . . Derelict Logs Recovered . | . . . . . Drone Launches . | . . . . . Drone Recoveries . | . . . . . Exploration | -11 -10 -10 -8 -7 ------------- Run | Yrd Mat Sub Mat Fac Turns Passed 3605 | 79 1214 300 948 1064 Spaces Moved 1724 | 46 674 206 445 353 Core 18 | 9 . . 8 1 Treads 938 | 37 206 . 343 352 Legs . | . . . . . Wheels . | . . . . . Hover 674 | . 468 206 . . Flight 94 | . . . 94 . Fastest Speed 31 | 50 116 116 31 145 Average Speed 161 | 145 129 116 160 251 Slowest Speed 1850 | 160 160 116 350 1850 Overloaded Moves . | . . . . . Propulsion Burnouts . | . . . . . Robots Hopped . | . . . . . Potential Cave-ins . | . . . . . Cave-ins Triggered . | . . . . . Exploration Rate (%) 29 | 3 86 11 36 10 Regions Visited 4 Branch Regions 1 Pre-discovered Areas . | . . . . . Known Exits Taken 3 | . 1 1 1 . Unknown Exits Taken 1 | 1 . . . . Scrap Searched 2 | . . 2 . . Spaces Dug 28 | . 12 . 8 8 Terrain Destroyed 63 | . 19 . 13 31 Melee 25 | . 11 . 6 8 Projectile 10 | . 3 . 7 . AOE 28 | . 5 . . 23 Terrain Rammed . | . . . . . Walls Destroyed . | . . . . . Machines Disabled . | . . . . . Actions | -11 -10 -10 -8 -7 --------- Run | Yrd Mat Sub Mat Fac Total 2272 | 55 919 257 608 433 Wait 273 | . 152 26 92 3 Move 1720 | 45 673 205 444 353 Hop . | . . . . . Pick Up 31 | 4 12 4 3 8 Fast Attach 32 | 6 5 1 17 3 Attach 8 | . 1 2 1 4 Detach . | . . . . . Swap 10 | . 8 1 1 . Drop 35 | . 10 7 15 3 Fire 97 | . 44 10 26 17 Melee 56 | . 14 1 9 32 Ram . | . . . . . Kick . | . . . . . Crush 7 | . . . . 7 Escape Stasis . | . . . . . Rewire . | . . . . . Trap . | . . . . . Miscellaneous 3 | . . . . 3 Route ------- -11/Scrapyard -10/Materials (discovered 4 exits: [*Mat] / *Min x2 / *Sub) -10/Subcaves -8/Materials -7/Factory History --------- Turn | Location | Event 10 | -11/Scrapyard | Discovered new exit (range 15) 80 | -11/Scrapyard | Entered Materials 302 | -10/Materials | Build established: Mutant 474 | -10/Materials | Identified exit to Mines 1086 | -10/Materials | Discovered new exit (range 14) 1265 | -10/Materials | Discovered new exit (range 5) 1292 | -10/Materials | Identified exit to Subcaves 1294 | -10/Materials | Entered Subcaves 1485 | -10/Subcaves | Visited 4L-MR0's lab 1502 | -10/Subcaves | Found Prototype Power Core 1502 | -10/Subcaves | Identified Meta Core 1504 | -10/Subcaves | Attached Meta Core, gained temporary slots: Propulsion, Utility, Weapon 1514 | -10/Subcaves | Found Prototype Special Melee Weapon 1562 | -10/Subcaves | Discovered new exit (range 10) 1573 | -10/Subcaves | Identified exit to Materials 1594 | -10/Subcaves | Entered Materials 1594 | -8/Materials | Evolved 4 slots: Propulsion x1, Utility x1, Weapon x2 1655 | -8/Materials | Central database locked down 1878 | -8/Materials | Repaired Hvy. Hammer 2051 | -8/Materials | Build established: Tank 2507 | -8/Materials | Discovered new exit (range 11) 2541 | -8/Materials | Identified exit to Factory 2542 | -8/Materials | Entered Factory 2542 | -7/Factory | Evolved 2 slots: Utility x1, Weapon x1 3136 | -7/Factory | Identified 1B-0RG's Assimilator 3147 | -7/Factory | Assimilating Commando 4a into Collective. 3155 | -7/Factory | Assimilating Guardian 4a into Collective. 3405 | -7/Factory | Assimilating Engineer 4a into Collective. 3424 | -7/Factory | Build established: Mutant 3559 | -7/Factory | Cargo convoy interrupted 3578 | -7/Factory | Core integrity fell below 50% 3586 | -7/Factory | Core integrity fell below 20% 3606 | -7/Factory | Destroyed by H-55 Commando with Gauss Rifle Last Messages --------------- 03593_ Penetrated by Slug. 03594_ Slammed into H-55 Commando. 03594_ Penetrated by Slug. 03595_ Slammed into H-55 Commando. 03596_ Penetrated by Slug. 03596_ K-01 Serf collects debris. 03597_ Slammed into H-55 Commando. 03599_ Penetrated by Slug. 03599_ K-01 Serf collects debris. 03599_ Slammed into H-55 Commando. 03600_ Penetrated by Slug. 03601_ Slammed into H-55 Commando. 03602_ Penetrated by Slug. 03602_ K-01 Serf collects debris. 03602_ Slammed into H-55 Commando. 03604_ Acquired 20 matter. 03606_ M-28 Smith repairs K-01 Serf Lgt. Ion Engine. 03606_ K-01 Serf collects debris. 03606_ Penetrated by Slug. Map ----- +----------------------------------------------------+ | ?????????????????????????????????????????????????? | | ?????????????????????????????????????????????????? | | ?????????????????????????????????????????????????? | | ?????????????????????????????????????????????????? | | ?????????????????????????????????????????????????? | | ?????????????????????????????????????????????????? | | ?????????????????????????????????????????????????? | | ?????????????????????????????????????????????????? | | ????????????????????????????????????????????? ??? | | ????????????????????????????????????????????? ??? | | ????????????????????????????????????????????? ??? | | ????????????????????????????????????????????? ??? | | ??????????????????????????? ? ??????????????? ??? | | ???????????????????????? ????????? ?????????? ??? | | ?????????????????????#####################???#+#?? | | ????????????????????## = ! # [ ! #???# #?? | | ??????????????????? ## # #???# #?? | | ???????????????? ?? ##[ ! # ! #???# #?? | | ??????????????????" # ! ! """" # """"#???# #?? | | ??????????????????? ##! """" # """"#???# ### | | ????????????? ??????## """" # ! """"#???# | | ??????####+#????? ??## """ # """"#???# | | ??????# # ## # ##### | | ??????# ##x#########+!;;#;####+####### | | ??????# "" % !% !=! k%* = *! | | ??????# T =![!* h @*m= =*!!! = | | ??????# !%[%=%* !hm = | | ??????# ######################+####### | | ??????# ???################### #####+### | | ?????????????????#??????????#???# ## ?# | | ???????????????????????????????## ## """ # | | ????????????????????? ????#?????# ## """ # | | ????????????????????????????????# ## """ + | | ????????????????????"???????????# ## # | | ????????????????????????????????# ## # | | ????????????????????????????????# ##]]] # | | ??????????????????????"????#????# ##]] # | | ????????????????????? ??????????###########]] # | | ?????????????????????????????#????????????# # | | ??????????????????????????????????????????# ?? # | | ??????????????????????????????????????????# ?? # | | ??????????????????????????????????????????# ????# | | ??????????????????????????????????????????###????? | | ?????????????????????????????????????????????????? | | ?????????????????????????????????????????????????? | | ?????????????????????????????????????????????????? | | ?????????????????????????????????????????????????? | | ?????????????????????????????????????????????????? | | ?????????????????????????????????????????????????? | | ?????????????????????????????????????????????????? | +----------------------------------------------------+ Best States ------------- Heat Dissipation 34 Energy Generation 17 Energy Capacity 250 Matter Stores 300 Matter Capacity 300 Sight Range 16 Terrain Scan Density 10 Armor Coverage 100 Utility Shielding 66 Evasion (%) 40 Recoil Reduction 3 Offensive Hacking 10 Item Schematics ----------------- None Robot Schematics ------------------ None Fabricated ------------ Nothing Repaired ---------- Hvy. Hammer | 60% | -8/Materials Studied --------- None Alien Tech Used ----------------- None Achievements -------------- I, Locutus It Was An Accident, I Swear Respectable Loadout Challenges ------------ None Game ------ Seed ThiefSurgeMultitool Manual? 0 Play Time 00:37:24 Cumulative 30.6 hours Start 2026.03.31 @ 10:16:07 End 2026.03.31 @ 11:03:41 Sessions 1 Manual Loads 0 Difficulty Rogue Special Mode None Game No. 78 Rogue 78 Adventurer 0 Explorer 0 Win Type - Total 0 Types 0/0/0/0/0/0/0/0/0/0 Lore% 26 Gallery% 28 Achievement% 21 Wizard Run 0 Options --------- Layout 2 ASCII 0 Keyboard 0 Movement Mouse Keybinds 0 Fullscreen 1 Font 32/SmallcapsGlow Map View 50x44 Zoom Use 0% Tactical HUD 1 Map Filters NONE Filters NONE Steam 1 RUN: a902034f-e2bd-4273-b853-f794bcba7f66